[Event "DLM Youth 2024"]
[Site "Tuebingen"]
[Date "2024.10.05"]
[Round "5"]
[White "Aniol, Nico"]
[Black "Fischer, Darja"]
[Result "1/2-1/2"]
[ECO "B14"]
[WhiteElo "1864"]
[BlackElo "1872"]
[Annotator "NA RC"]
[PlyCount "92"]
[EventDate "2024.10.03"]
[EventType "team-swiss"]
[EventRounds "7"]
[EventCountry "GER"]
[SourceTitle "playchess.com"]
[Source "ChessBase"]
[SourceQuality "1"]
[TimeControl "40/5400+30:1800+30"]

1. e4 {[%emt 0:00:02]} c6 {[%emt 0:00:04]} 2. d4 {[%emt 0:00:07]} d5 3. exd5 {[%emt 0:00:07]} cxd5 {[%emt 0:00:07]} 4. c4 {[%emt 0:00:09]} Nf6 {[%emt 0:00:08]} 5. Nc3 {[%emt 0:00:08]} e6 {[%emt 0:00:17]} 6. c5 {[%emt 0:00:06]} Be7 {[%emt 0:00:44]} 7. Nf3 {[%emt 0:00:10]} O-O {[%emt 0:00:31]} 8. Bd3 {[%emt 0:03:26]} Nc6 {[%emt 0:03:36]} 9. O-O {[%emt 0:03:21]} Nd7 {[%emt 0:06:46]} 10. Bf4 {[%emt 0:05:10]} a6 {[%emt 0:03:26]} 11. a3 {[%emt 0:05:49]} f5 {[%emt 0:01:30]} 12. Qe2 {[%emt 0:17:30]} Nf6 {[%emt 0:01:27]} 13. Bg5 {[%emt 0:11:48]} h6 {[%emt 0:04:14]} 14. Bxf6 {[%emt 0:01:09]} Bxf6 {[%emt 0:01:54]} 15. Rad1 {[%emt 0:04:48]} Nxd4 {[%emt 0:13:32]} 16. Nxd4 {[%emt 0:00:06]} Bxd4 {[%emt 0:00:03]} 17. Bxf5 {[%emt 0:05:59]} e5 {[%emt 0:02:50]} 18. Bc2 {[%emt 0:06:21]} Bf5 {[%emt 0:10:20]} 19. Bb3 {[%emt 0:01:58]} Kh8 {[%emt 0:05:48]} 20. Bxd5 {[%emt 0:03:00]} Qc8 {[%emt 0:04:55]} 21. Qc4 {[%emt 0:06:54]} Qxc5 {[%emt 0:07:10]} 22. Qxc5 {[%emt 0:01:07]} Bxc5 {[%emt 0:00:04]} 23. Bxb7 {[%emt 0:03:31]} Rab8 {[%emt 0:01:28]} 24. Bxa6 {[%emt 0:00:18]} Rxb2 {[%emt 0:00:10]} 25. Na4 {[%emt 0:05:10]} Bxf2+ {[%emt 0:00:35]} 26. Rxf2 {[%emt 0:00:05]} Rxf2 {[%emt 0:00:04]} 27. Kxf2 {[%emt 0:00:05]} Bc2+ {[%emt 0:00:06]} 28. Ke2 {[%emt 0:00:06]} Bxa4 {[%emt 0:05:33]} 29. Rc1 {[%emt 0:00:16]} Ra8 {[%emt 0:02:19]} 30. Rc8+ {[%emt 0:00:07]} Rxc8 {[%emt 0:00:03]} 31. Bxc8 {[%emt 0:00:02]} Kg8 {[%emt 0:00:18]} 32. Ke3 {[%emt 0:00:38]} Bc6 {[%emt 0:01:16]} 33. g3 {[%emt 0:00:12]} Kf7 {[%emt 0:00:20]} 34. Bf5 {[%emt 0:00:09]} Ke7 {[%emt 0:00:36]} 35. Be4 {[%emt 0:00:23]} Bb5 {[%emt 0:00:11]} 36. Bc2 {[%emt 0:00:11]} Bc6 {[%emt 0:03:15]} 37. a4 {[%emt 0:00:43]} Kd6 {[%emt 0:01:20]} 38. a5 {[%emt 0:01:13]} Kc5 {[%emt 0:00:38]} 39. Be4 {[%emt 0:00:42]} Bd7 {[%emt 0:02:00]} 40. Bb7 {[%emt 0:00:27]} Bf5 {[%emt 0:01:15]} 41. a6 {[%emt 0:31:22]} Kb6 {[%emt 0:32:45]} 42. Kd2 {[%emt 0:00:29]} g5 {[%emt 0:01:30]} 43. Kc3 {[%emt 0:00:33]} Bg6 {[%emt 0:04:47]} 44. Kc4 {[%emt 0:01:02]} Bf7+ {[%emt 0:00:07]} 45. Kd3 {[%emt 0:00:13]} Bg6+ {[%emt 0:00:09]} 46. Ke3 {[%emt 0:00:23]} Bf5 {[%emt 0:00:41]} 1/2-1/2

[Event "DLM Youth 2024"]
[Site "Tuebingen"]
[Date "2024.10.05"]
[Round "5"]
[White "Brunner, Sophia"]
[Black "Roessling, Laura Marie"]
[Result "1-0"]
[ECO "A29"]
[WhiteElo "1863"]
[BlackElo "1624"]
[Annotator "NA RC"]
[PlyCount "133"]
[EventDate "2024.10.03"]
[EventType "team-swiss"]
[EventRounds "7"]
[EventCountry "GER"]
[SourceTitle "playchess.com"]
[Source "ChessBase"]
[SourceQuality "1"]
[TimeControl "40/5400+30:1800+30"]

1. c4 {[%emt 0:00:05]} e5 {[%emt 0:05:42]} 2. g3 {[%emt 0:00:18]} Nf6 {[%emt 0:04:28]} 3. Bg2 {[%emt 0:00:21]} Be7 {[%emt 0:03:06]} 4. Nf3 {[%emt 0:00:19]} Nc6 {[%emt 0:04:13]} 5. O-O {[%emt 0:01:29]} O-O {[%emt 0:04:01]} 6. Nc3 {[%emt 0:01:15]} d6 {[%emt 0:03:24]} 7. b3 {[%emt 0:02:55]} Bf5 {[%emt 0:10:42]} 8. d4 {[%emt 0:01:40]} Rb8 {[%emt 0:04:01]} 9. Bb2 {[%emt 0:04:26]} Re8 {[%emt 0:15:33]} 10. a3 {[%emt 0:10:13]} a6 {[%emt 0:04:48]} 11. b4 {[%emt 0:02:57]} b5 {[%emt 0:06:12]} 12. cxb5 {[%emt 0:02:45]} axb5 {[%emt 0:01:25]} 13. Rc1 {[%emt 0:01:46]} exd4 {[%emt 0:07:54]} 14. Nxb5 {[%emt 0:08:31]} Rxb5 {[%emt 0:03:47]} 15. Rxc6 {[%emt 0:00:13]} Be4 {[%emt 0:00:48]} 16. Nxd4 {[%emt 0:01:35]} Bxc6 {[%emt 0:02:36]} 17. Bxc6 {[%emt 0:00:13]} Rb8 {[%emt 0:01:18]} 18. Bxe8 {[%emt 0:00:13]} Qxe8 {[%emt 0:00:09]} 19. Nf5 {[%emt 0:01:02]} h6 {[%emt 0:08:10]} 20. Qc2 {[%emt 0:04:54]} c5 {[%emt 0:03:01]} 21. bxc5 {[%emt 0:02:00]} dxc5 {[%emt 0:00:52]} 22. Nxe7+ {[%emt 0:00:55]} Qxe7 {[%emt 0:00:12]} 23. Bxf6 {[%emt 0:00:14]} gxf6 {[%emt 0:00:08]} 24. Rc1 {[%emt 0:01:11]} Rd8 {[%emt 0:01:25]} 25. e3 {[%emt 0:01:05]} Qe5 {[%emt 0:02:57]} 26. Kg2 {[%emt 0:03:42]} Qd5+ {[%emt 0:01:14]} 27. e4 {[%emt 0:01:04]} Qd4 {[%emt 0:00:47]} 28. Qe2 {[%emt 0:02:10]} Re8 {[%emt 0:00:52]} 29. Rc4 {[%emt 0:00:45]} Qd6 {[%emt 0:00:08]} 30. Qg4+ {[%emt 0:00:38]} Kh7 {[%emt 0:00:07]} 31. Qf5+ {[%emt 0:01:05]} Kg7 {[%emt 0:00:05]} 32. Qxc5 {[%emt 0:07:13]} Qxc5 {[%emt 0:00:23]} 33. Rxc5 {[%emt 0:00:05]} Rxe4 {[%emt 0:00:07]} 34. Kf3 {[%emt 0:01:08]} f5 {[%emt 0:01:24]} 35. Rb5 {[%emt 0:01:23]} Kg6 {[%emt 0:01:13]} 36. Rb4 {[%emt 0:00:15]} Re1 {[%emt 0:00:25]} 37. Kf4 {[%emt 0:01:26]} f6 {[%emt 0:00:29]} 38. h4 {[%emt 0:02:28]} h5 {[%emt 0:00:38]} 39. f3 {[%emt 0:00:33]} Ra1 {[%emt 0:00:19]} 40. a4 {[%emt 0:00:43]} Ra3 {[%emt 0:00:20]} 41. g4 {[%emt 0:30:49]} hxg4 {[%emt 0:30:51]} 42. fxg4 {[%emt 0:00:13]} fxg4 {[%emt 0:00:00]} 43. Kxg4 {[%emt 0:00:00]} f5+ {[%emt 0:00:00]} 44. Kf4 {[%emt 0:00:00]} Rh3 {[%emt 0:00:00]} 45. Rb6+ {[%emt 0:00:00]} Kf7 {[%emt 0:00:00]} 46. Kg5 {[%emt 0:00:00]} Rc3 {[%emt 0:00:00]} 47. Rf6+ {[%emt 0:00:00]} Kg7 {[%emt 0:00:00]} 48. Rxf5 {[%emt 0:00:00]} Rc4 {[%emt 0:00:28]} 49. Rf4 {[%emt 0:00:00]} Rc5+ {[%emt 0:00:00]} 50. Kg4 {[%emt 0:00:00]} Kg6 {[%emt 0:00:00]} 51. Rb4 {[%emt 0:00:00]} Ra5 {[%emt 0:00:00]} 52. Kf4 {[%emt 0:00:00]} Rh5 {[%emt 0:00:00]} 53. Ke3 {[%emt 0:00:00]} Kf6 {[%emt 0:00:00]} 54. Kd3 {[%emt 0:00:00]} Ke6 {[%emt 0:00:00]} 55. Rd4 {[%emt 0:00:00]} Rc5 {[%emt 0:00:00]} 56. Rc4 {[%emt 0:00:00]} Ra5 {[%emt 0:00:00]} 57. Kc3 {[%emt 0:00:00]} Re5 {[%emt 0:00:00]} 58. Kb4 {[%emt 0:00:00]} Re1 {[%emt 0:00:00]} 59. Kc5 {[%emt 0:00:00]} Re5+ {[%emt 0:00:00]} 60. Kc6 {[%emt 0:00:00]} Ke7 {[%emt 0:00:00]} 61. Kb6 {[%emt 0:00:00]} Rd5 {[%emt 0:00:00]} 62. a5 {[%emt 0:00:00]} Kd7 {[%emt 0:00:00]} 63. a6 {[%emt 0:00:00]} Rd1 {[%emt 0:00:00]} 64. Rb4 {[%emt 0:00:00]} Rd6+ {[%emt 0:00:00]} 65. Kb7 {[%emt 0:00:00]} Ke7 {[%emt 0:00:00]} 66. a7 {[%emt 0:00:00]} Rd7+ {[%emt 0:00:00]} 67. Ka6 {[%emt 0:00:00]} 1-0

[Event "DLM Youth 2024"]
[Site "Tuebingen"]
[Date "2024.10.05"]
[Round "5"]
[White "Yin, Vito"]
[Black "Junge, Mattheo Gabriel"]
[Result "0-1"]
[ECO "A16"]
[WhiteElo "1859"]
[BlackElo "1907"]
[Annotator "RC"]
[PlyCount "52"]
[EventDate "2024.10.03"]
[EventType "team-swiss"]
[EventRounds "7"]
[EventCountry "GER"]
[SourceTitle "playchess.com"]
[Source "ChessBase"]
[SourceQuality "1"]
[TimeControl "40/5400+30:1800+30"]

1. c4 {[%emt 0:00:05]} Nf6 {[%emt 0:00:11]} 2. Nc3 {[%emt 0:00:04]} g6 {[%emt 0:00:10]} 3. g3 {[%emt 0:00:18]} Bg7 {[%emt 0:00:24]} 4. Bg2 {[%emt 0:00:05]} O-O {[%emt 0:00:11]} 5. e3 {[%emt 0:00:46]} d6 {[%emt 0:07:28]} 6. Rb1 {[%emt 0:00:50]} a5 {[%emt 0:05:02]} 7. a3 {[%emt 0:00:09]} e5 {[%emt 0:07:00]} 8. d3 {[%emt 0:02:47]} c6 {[%emt 0:02:45]} 9. b4 {[%emt 0:00:21]} axb4 {[%emt 0:00:09]} 10. axb4 {[%emt 0:00:05]} Qc7 {[%emt 0:05:08]} 11. Nge2 {[%emt 0:03:49]} Re8 {[%emt 0:03:40]} 12. b5 {[%emt 0:02:42]} Bf5 {[%emt 0:08:07]} 13. e4 {[%emt 0:31:12]} Be6 {[%emt 0:00:46]} 14. O-O {[%emt 0:02:19]} Nh5 {[%emt 0:13:22]} 15. Be3 {[%emt 0:03:41]} Rf8 {[%emt 0:05:15]} 16. Ra1 {[%emt 0:06:05]} Rxa1 {[%emt 0:05:17]} 17. Qxa1 {[%emt 0:00:11]} f5 {[%emt 0:00:17]} 18. Qa7 {[%emt 0:16:34]} f4 {[%emt 0:11:23]} 19. Bb6 {[%emt 0:00:04]} Qe7 {[%emt 0:01:20]} 20. f3 {[%emt 0:00:52]} fxg3 {[%emt 0:01:25]} 21. hxg3 {[%emt 0:00:03]} c5 {[%emt 0:01:22]} 22. Na4 {[%emt 0:07:08]} Bh6 {[%emt 0:04:47]} 23. Bh1 {[%emt 0:09:09]} Be3+ {[%emt 0:06:49]} 24. Kg2 {[%emt 0:00:40]} Qg5 {[%emt 0:00:26]} 25. Nxc5 {[%emt 0:07:00]} Nf4+ {[%emt 0:01:24]} 26. Nxf4 {[%emt 0:00:28]} exf4 {[%emt 0:00:07]} 0-1

[Event "DLM Youth 2024"]
[Site "Tuebingen"]
[Date "2024.10.05"]
[Round "5"]
[White "Wartenberg, Alexander"]
[Black "Sereda, Yaroslava"]
[Result "0-1"]
[ECO "B32"]
[WhiteElo "1857"]
[BlackElo "1972"]
[Annotator "RC"]
[PlyCount "66"]
[EventDate "2024.10.03"]
[EventType "team-swiss"]
[EventRounds "7"]
[EventCountry "GER"]
[SourceTitle "playchess.com"]
[Source "ChessBase"]
[SourceQuality "1"]
[TimeControl "40/5400+30:1800+30"]

1. e4 {[%emt 0:00:02]} c5 {[%emt 0:00:05]} 2. Nf3 {[%emt 0:00:07]} Nc6 {[%emt 0:00:06]} 3. d4 {[%emt 0:00:08]} cxd4 {[%emt 0:00:05]} 4. Nxd4 {[%emt 0:00:06]} e5 {[%emt 0:00:09]} 5. Nb5 {[%emt 0:00:02]} d6 {[%emt 0:00:09]} 6. N1c3 {[%emt 0:00:05]} a6 {[%emt 0:00:12]} 7. Na3 {[%emt 0:00:04]} Be7 {[%emt 0:00:13]} 8. Nc4 {[%emt 0:00:23]} b5 {[%emt 0:00:13]} 9. Ne3 {[%emt 0:00:15]} Nf6 {[%emt 0:00:09]} 10. Ned5 {[%emt 0:00:44]} Be6 {[%emt 0:12:59]} 11. Nxf6+ {[%emt 0:04:25]} Bxf6 {[%emt 0:01:49]} 12. Be3 {[%emt 0:02:52]} O-O {[%emt 0:01:43]} 13. Be2 {[%emt 0:02:05]} Bg5 {[%emt 0:08:25]} 14. Qd2 {[%emt 0:06:14]} Bxe3 {[%emt 0:02:26]} 15. fxe3 {[%emt 0:01:33]} b4 {[%emt 0:01:47]} 16. Nd1 {[%emt 0:01:31]} Qh4+ {[%emt 0:03:54]} 17. Nf2 {[%emt 0:02:03]} Rfd8 {[%emt 0:04:51]} 18. Bf3 {[%emt 0:04:13]} Rac8 {[%emt 0:04:55]} 19. O-O {[%emt 0:00:48]} a5 {[%emt 0:05:46]} 20. Qe2 {[%emt 0:08:56]} Ne7 {[%emt 0:04:10]} 21. Rfd1 {[%emt 0:14:18]} Qg5 {[%emt 0:13:57]} 22. Rd2 {[%emt 0:06:01]} Bc4 {[%emt 0:09:13]} 23. Qe1 {[%emt 0:01:16]} Ng6 {[%emt 0:01:04]} 24. g3 {[%emt 0:04:28]} h5 {[%emt 0:02:39]} 25. Nh3 {[%emt 0:05:13]} Qh6 {[%emt 0:01:07]} 26. Kf2 {[%emt 0:10:06]} Be6 {[%emt 0:01:50]} 27. Ng1 {[%emt 0:03:10]} h4 {[%emt 0:02:56]} 28. Bg2 {[%emt 0:03:09]} Rf8 {[%emt 0:07:35]} 29. Nf3 {[%emt 0:02:24]} f5 {[%emt 0:01:27]} 30. exf5 {[%emt 0:00:49]} Bxf5 {[%emt 0:00:24]} 31. e4 {[%emt 0:00:55]} Bxe4 {[%emt 0:01:44]} 32. Qe3 {[%emt 0:02:20]} Bxf3 {[%emt 0:01:42]} 33. Bxf3 {[%emt 0:00:21]} e4 {[%emt 0:00:48]} 0-1

[Event "DLM Youth 2024"]
[Site "Tuebingen"]
[Date "2024.10.05"]
[Round "5"]
[White "Shevchenko, Igor"]
[Black "Wilmink, Anna"]
[Result "0-1"]
[ECO "E21"]
[WhiteElo "1856"]
[BlackElo "1927"]
[Annotator "RC"]
[PlyCount "72"]
[EventDate "2024.10.03"]
[EventType "team-swiss"]
[EventRounds "7"]
[EventCountry "GER"]
[SourceTitle "playchess.com"]
[Source "ChessBase"]
[SourceQuality "1"]
[TimeControl "40/5400+30:1800+30"]

1. d4 {[%emt 0:00:12]} e6 {[%emt 0:00:11]} 2. c4 {[%emt 0:00:18]} b6 {[%emt 0:00:12]} 3. Nc3 {[%emt 0:03:29]} Bb7 {[%emt 0:00:16]} 4. Nf3 {[%emt 0:09:36]} Bb4 {[%emt 0:00:12]} 5. e3 {[%emt 0:10:51]} f5 {[%emt 0:01:46]} 6. Bd3 {[%emt 0:04:57]} Nf6 {[%emt 0:00:45]} 7. Bd2 {[%emt 0:03:33]} O-O {[%emt 0:01:03]} 8. Qc2 {[%emt 0:01:30]} Bxc3 {[%emt 0:07:37]} 9. Bxc3 {[%emt 0:01:47]} Ne4 {[%emt 0:01:23]} 10. O-O {[%emt 0:12:08]} Rf6 {[%emt 0:07:40]} 11. d5 {[%emt 0:12:52]} Nxc3 {[%emt 0:00:58]} 12. bxc3 {[%emt 0:00:55]} Na6 {[%emt 0:03:53]} 13. Rad1 {[%emt 0:05:08]} Rh6 {[%emt 0:14:14]} 14. Rfe1 {[%emt 0:05:16]} Nc5 {[%emt 0:02:52]} 15. Bf1 {[%emt 0:06:47]} Qf6 {[%emt 0:05:24]} 16. Nd4 {[%emt 0:09:33]} Qh4 {[%emt 0:03:48]} 17. Nf3 {[%emt 0:00:48]} Qh5 {[%emt 0:01:57]} 18. h3 {[%emt 0:01:23]} Qg6 {[%emt 0:02:18]} 19. Kh1 {[%emt 0:04:28]} Qf6 {[%emt 0:02:01]} 20. Nd4 {[%emt 0:03:42]} Rf8 {[%emt 0:02:21]} 21. Bd3 {[%emt 0:00:52]} Nxd3 {[%emt 0:02:23]} 22. Qxd3 {[%emt 0:00:42]} e5 {[%emt 0:13:19]} 23. Nb5 {[%emt 0:00:30]} a6 {[%emt 0:00:26]} 24. Na3 {[%emt 0:00:22]} Qg5 {[%emt 0:02:53]} 25. Qd2 {[%emt 0:00:41]} d6 {[%emt 0:00:51]} 26. f4 {[%emt 0:00:06]} Qg3 {[%emt 0:01:27]} 27. Rf1 {[%emt 0:00:48]} Rff6 {[%emt 0:02:19]} 28. Qf2 {[%emt 0:00:14]} Qg6 {[%emt 0:01:53]} 29. Nc2 {[%emt 0:00:35]} Qf7 {[%emt 0:01:38]} 30. Ne1 {[%emt 0:00:22]} c6 {[%emt 0:03:43]} 31. Nf3 {[%emt 0:00:39]} Qc7 {[%emt 0:01:42]} 32. Qd2 {[%emt 0:00:27]} b5 {[%emt 0:02:46]} 33. cxb5 {[%emt 0:00:13]} cxb5 {[%emt 0:00:47]} 34. Ng5 {[%emt 0:00:47]} Rhg6 {[%emt 0:01:10]} 35. fxe5 {[%emt 0:00:50]} dxe5 {[%emt 0:00:09]} 36. Ne6 {[%emt 0:00:32]} Qd6 {[%emt 0:02:04]} 0-1

[Event "DLM Youth 2024"]
[Site "Tuebingen"]
[Date "2024.10.05"]
[Round "5"]
[White "Meitzner, Jonathan Franz"]
[Black "Kateryniuk, Ivan"]
[Result "1-0"]
[ECO "C42"]
[WhiteElo "1845"]
[BlackElo "1860"]
[Annotator "NA RC"]
[PlyCount "91"]
[EventDate "2024.10.03"]
[EventType "team-swiss"]
[EventRounds "7"]
[EventCountry "GER"]
[SourceTitle "playchess.com"]
[Source "ChessBase"]
[SourceQuality "1"]
[TimeControl "40/5400+30:1800+30"]

1. e4 {[%emt 0:00:03]} e5 {[%emt 0:00:05]} 2. Nf3 {[%emt 0:00:04]} Nf6 {[%emt 0:00:04]} 3. Nxe5 {[%emt 0:00:06]} d6 {[%emt 0:00:01]} 4. Nf3 {[%emt 0:00:09]} Nxe4 {[%emt 0:00:03]} 5. Nc3 {[%emt 0:00:06]} Nxc3 6. dxc3 {[%emt 0:00:08]} Be7 {[%emt 0:00:06]} 7. Be3 {[%emt 0:00:13]} Nd7 {[%emt 0:00:02]} 8. Qd2 {[%emt 0:00:12]} O-O {[%emt 0:00:40]} 9. O-O-O {[%emt 0:00:49]} Nf6 {[%emt 0:00:10]} 10. Bd3 {[%emt 0:00:10]} Be6 {[%emt 0:00:36]} 11. Kb1 {[%emt 0:00:24]} c5 {[%emt 0:00:22]} 12. Bg5 {[%emt 0:01:55]} Qa5 {[%emt 0:02:13]} 13. a3 {[%emt 0:05:51]} b5 {[%emt 0:00:56]} 14. Qf4 {[%emt 0:15:18]} Rab8 {[%emt 0:19:07]} 15. Qh4 {[%emt 0:36:14]} Rfd8 {[%emt 0:16:46]} 16. Bxh7+ {[%emt 0:02:57]} Kf8 {[%emt 0:04:36]} 17. Be4 {[%emt 0:06:45]} b4 {[%emt 0:01:26]} 18. cxb4 {[%emt 0:05:25]} cxb4 {[%emt 0:07:05]} 19. Bd2 {[%emt 0:02:02]} Nh5 {[%emt 0:32:50]} 20. Ng5 {[%emt 0:04:20]} Bxg5 {[%emt 0:00:46]} 21. Qxg5 {[%emt 0:08:39]} Rb5 {[%emt 0:07:45]} 22. Qe3 {[%emt 0:03:38]} Nf6 {[%emt 0:02:55]} 23. Bd3 {[%emt 0:01:52]} Nd5 {[%emt 0:00:40]} 24. Qd4 {[%emt 0:00:56]} Rb6 {[%emt 0:01:06]} 25. Ka1 {[%emt 0:02:25]} Rdb8 {[%emt 0:00:51]} 26. Rb1 {[%emt 0:00:35]} R6b7 {[%emt 0:01:24]} 27. Bc4 {[%emt 0:01:37]} a6 {[%emt 0:00:45]} 28. Ba2 {[%emt 0:00:47]} Nc3 {[%emt 0:00:29]} 29. Bxc3 {[%emt 0:00:21]} bxc3 {[%emt 0:00:18]} 30. Bxe6 {[%emt 0:00:53]} cxb2+ {[%emt 0:00:10]} 31. Ka2 {[%emt 0:00:14]} fxe6 {[%emt 0:00:25]} 32. Qxd6+ {[%emt 0:00:06]} Kf7 {[%emt 0:00:14]} 33. Qf4+ {[%emt 0:00:11]} Kg8 {[%emt 0:00:16]} 34. Qe4 {[%emt 0:00:48]} Rb6 {[%emt 0:01:35]} 35. Rhd1 {[%emt 0:00:25]} Kh8 {[%emt 0:00:35]} 36. Rd3 {[%emt 0:00:15]} Qc5 {[%emt 0:00:29]} 37. Rh3+ {[%emt 0:00:48]} Kg8 {[%emt 0:00:05]} 38. Rf3 {[%emt 0:00:37]} a5 {[%emt 0:00:49]} 39. Rb3 {[%emt 0:00:54]} Rxb3 {[%emt 0:00:42]} 40. cxb3 {[%emt 0:00:06]} a4 {[%emt 0:00:31]} 41. Qxa4 {[%emt 0:30:59]} Qxf2 {[%emt 0:03:01]} 42. Rxb2 {[%emt 0:00:00]} Qf5 {[%emt 0:00:23]} 43. Qc4 {[%emt 0:00:00]} Rd8 {[%emt 0:01:21]} 44. Re2 {[%emt 0:00:00]} Qg5 {[%emt 0:00:44]} 45. Qxe6+ {[%emt 0:00:00]} Kh8 {[%emt 0:00:00]} 46. Qe3 {[%emt 0:00:00]} 1-0

[Event "DLM Youth 2024"]
[Site "Tuebingen"]
[Date "2024.10.05"]
[Round "5"]
[White "Ensslen, Jakob"]
[Black "Mueller, Maximilian"]
[Result "0-1"]
[ECO "A40"]
[WhiteElo "1774"]
[BlackElo "2030"]
[Annotator "RC"]
[PlyCount "62"]
[EventDate "2024.10.03"]
[EventType "team-swiss"]
[EventRounds "7"]
[EventCountry "GER"]
[SourceTitle "playchess.com"]
[Source "ChessBase"]
[SourceQuality "1"]
[TimeControl "40/5400+30:1800+30"]

1. d4 {[%emt 0:00:04]} e6 {[%emt 0:00:08]} 2. Bf4 {[%emt 0:00:08]} c5 {[%emt 0:00:04]} 3. e3 {[%emt 0:00:23]} Qb6 {[%emt 0:00:10]} 4. b3 {[%emt 0:03:32]} Nf6 {[%emt 0:00:33]} 5. Nf3 {[%emt 0:03:40]} Nc6 {[%emt 0:00:09]} 6. c3 {[%emt 0:02:10]} d5 {[%emt 0:02:44]} 7. Nbd2 {[%emt 0:04:31]} Be7 {[%emt 0:06:08]} 8. Bd3 {[%emt 0:00:58]} Bd7 {[%emt 0:12:20]} 9. h4 {[%emt 0:05:03]} cxd4 {[%emt 0:01:06]} 10. exd4 {[%emt 0:02:44]} Rc8 {[%emt 0:00:09]} 11. Rc1 {[%emt 0:09:25]} Na5 {[%emt 0:17:18]} 12. c4 {[%emt 0:09:47]} Ba3 {[%emt 0:00:48]} 13. Rb1 {[%emt 0:06:12]} Nc6 {[%emt 0:00:11]} 14. Be5 {[%emt 0:09:13]} Ng4 {[%emt 0:16:16]} 15. Bxg7 {[%emt 0:10:52]} Rg8 {[%emt 0:00:10]} 16. Be5 {[%emt 0:00:49]} Nxf2 {[%emt 0:10:22]} 17. Kxf2 {[%emt 0:03:13]} Nxe5 {[%emt 0:00:07]} 18. Bxh7 {[%emt 0:06:27]} Ng4+ {[%emt 0:03:23]} 19. Ke2 {[%emt 0:03:50]} Rg7 {[%emt 0:00:07]} 20. Bc2 {[%emt 0:02:46]} Qc7 {[%emt 0:10:08]} 21. Nf1 {[%emt 0:05:07]} dxc4 {[%emt 0:00:55]} 22. bxc4 {[%emt 0:05:10]} Qxc4+ {[%emt 0:00:15]} 23. Bd3 {[%emt 0:00:52]} Qxa2+ {[%emt 0:00:45]} 24. N1d2 {[%emt 0:01:04]} Rc3 {[%emt 0:05:34]} 25. Rxb7 {[%emt 0:02:44]} Rxd3 {[%emt 0:06:04]} 26. Rxd7 {[%emt 0:01:33]} Re3+ {[%emt 0:00:01]} 27. Kf1 {[%emt 0:00:13]} Kxd7 {[%emt 0:00:15]} 28. Qa4+ {[%emt 0:01:21]} Ke7 {[%emt 0:00:02]} 29. Qxa7+ {[%emt 0:00:29]} Kf6 {[%emt 0:00:04]} 30. g3 {[%emt 0:00:36]} Qa1+ {[%emt 0:00:06]} 31. Kg2 {[%emt 0:00:10]} Re2+ {[%emt 0:00:03]} 0-1

[Event "DLM Youth 2024"]
[Site "Tuebingen"]
[Date "2024.10.05"]
[Round "5"]
[White "Bursan, Ana-Maria"]
[Black "Sickmann, Lisa"]
[Result "0-1"]
[ECO "C25"]
[WhiteElo "1769"]
[BlackElo "1946"]
[Annotator "RC"]
[PlyCount "60"]
[EventDate "2024.10.03"]
[EventType "team-swiss"]
[EventRounds "7"]
[EventCountry "GER"]
[SourceTitle "playchess.com"]
[Source "ChessBase"]
[SourceQuality "1"]
[TimeControl "40/5400+30:1800+30"]

1. e4 {[%emt 0:00:02]} e5 {[%emt 0:00:01]} 2. Nc3 {[%emt 0:00:16]} Nc6 {[%emt 0:00:04]} 3. f4 {[%emt 0:00:19]} exf4 {[%emt 0:00:04]} 4. Nf3 {[%emt 0:00:06]} g5 {[%emt 0:00:03]} 5. g3 {[%emt 0:00:06]} g4 {[%emt 0:00:04]} 6. Nh4 {[%emt 0:00:14]} f3 {[%emt 0:00:03]} 7. d4 {[%emt 0:00:06]} d6 {[%emt 0:00:06]} 8. Be3 {[%emt 0:00:58]} Nf6 {[%emt 0:00:05]} 9. Qd2 {[%emt 0:03:07]} d5 {[%emt 0:00:04]} 10. e5 {[%emt 0:09:21]} Ne4 {[%emt 0:00:17]} 11. Nxe4 {[%emt 0:03:58]} dxe4 {[%emt 0:04:14]} 12. O-O-O {[%emt 0:04:38]} Qd5 {[%emt 0:01:07]} 13. a3 {[%emt 0:09:26]} b5 {[%emt 0:06:51]} 14. Bh6 {[%emt 0:07:53]} Be6 {[%emt 0:11:38]} 15. h3 {[%emt 0:08:35]} Rd8 {[%emt 0:03:51]} 16. Bxf8 {[%emt 0:08:26]} Rxf8 {[%emt 0:02:28]} 17. hxg4 {[%emt 0:08:25]} Nxd4 {[%emt 0:04:25]} 18. Nf5 {[%emt 0:06:38]} Bxf5 {[%emt 0:01:00]} 19. gxf5 {[%emt 0:00:14]} c6 {[%emt 0:08:46]} 20. Kb1 {[%emt 0:04:16]} Nxf5 {[%emt 0:00:53]} 21. Qxd5 {[%emt 0:00:49]} Rxd5 {[%emt 0:00:07]} 22. Rxd5 {[%emt 0:00:20]} cxd5 {[%emt 0:00:03]} 23. Bxb5+ {[%emt 0:03:04]} Ke7 {[%emt 0:00:07]} 24. Rxh7 {[%emt 0:04:56]} e3 {[%emt 0:00:21]} 25. Kc1 {[%emt 0:01:06]} Nxg3 {[%emt 0:00:42]} 26. Rg7 {[%emt 0:01:46]} Rh8 {[%emt 0:00:28]} 27. c4 {[%emt 0:01:37]} e2 {[%emt 0:00:38]} 28. cxd5 {[%emt 0:01:38]} e1=Q+ {[%emt 0:00:10]} 29. Kc2 {[%emt 0:00:05]} Rh2+ {[%emt 0:00:14]} 30. Kb3 {[%emt 0:00:21]} Qxe5 {[%emt 0:00:07]} 0-1

[Event "DLM Youth 2024"]
[Site "Tuebingen"]
[Date "2024.10.05"]
[Round "5"]
[White "Tu, Audrey"]
[Black "Margaryan, Mane"]
[Result "1-0"]
[ECO "B15"]
[WhiteElo "1722"]
[BlackElo "1493"]
[Annotator "NA RC"]
[PlyCount "53"]
[EventDate "2024.10.03"]
[EventType "team-swiss"]
[EventRounds "7"]
[EventCountry "GER"]
[SourceTitle "playchess.com"]
[Source "ChessBase"]
[SourceQuality "1"]
[TimeControl "40/5400+30:1800+30"]

1. e4 {[%emt 0:00:01]} c6 {[%emt 0:00:05]} 2. d4 {[%emt 0:00:04]} g6 {[%emt 0:00:03]} 3. Nc3 {[%emt 0:00:07]} Bg7 {[%emt 0:00:15]} 4. Be3 {[%emt 0:00:14]} d5 {[%emt 0:01:05]} 5. f3 {[%emt 0:00:09]} e6 {[%emt 0:02:12]} 6. e5 {[%emt 0:07:29]} Nd7 {[%emt 0:03:50]} 7. Bd3 {[%emt 0:03:14]} Ne7 {[%emt 0:02:52]} 8. Qd2 {[%emt 0:04:57]} O-O {[%emt 0:02:45]} 9. Bh6 {[%emt 0:07:23]} c5 {[%emt 0:01:57]} 10. Bxg7 {[%emt 0:17:16]} Kxg7 {[%emt 0:00:16]} 11. f4 {[%emt 0:02:15]} Nc6 {[%emt 0:07:10]} 12. Nf3 {[%emt 0:02:04]} b6 {[%emt 0:05:42]} 13. Nb5 {[%emt 0:04:47]} cxd4 {[%emt 0:06:26]} 14. Nfxd4 {[%emt 0:03:09]} Nxd4 {[%emt 0:01:10]} 15. Nxd4 {[%emt 0:00:19]} a6 {[%emt 0:01:34]} 16. h4 {[%emt 0:02:27]} h5 {[%emt 0:01:41]} 17. g4 {[%emt 0:03:03]} Rh8 {[%emt 0:02:41]} 18. gxh5 {[%emt 0:10:13]} Rxh5 {[%emt 0:01:01]} 19. Bxg6 {[%emt 0:02:32]} Kxg6 {[%emt 0:01:27]} 20. Qg2+ {[%emt 0:06:22]} Kh7 {[%emt 0:02:51]} 21. Rg1 {[%emt 0:04:43]} Qf8 {[%emt 0:03:32]} 22. Nxe6 {[%emt 0:00:42]} Qh8 {[%emt 0:07:01]} 23. Qg4 {[%emt 0:03:13]} Rh6 {[%emt 0:06:33]} 24. Qf5+ {[%emt 0:00:45]} Rg6 {[%emt 0:00:47]} 25. Qh5+ {[%emt 0:02:27]} Kg8 {[%emt 0:01:50]} 26. Rxg6+ {[%emt 0:00:19]} fxg6 {[%emt 0:00:19]} 27. Qxg6+ {[%emt 0:00:04]} 1-0